Workbook

Sheet Seurat
A1: Cluster | B1: Average frequency | C1: Untreated | D1: CTLA4 | E1: RT | F1: RT+CTLA4 | G1: Differentially expressed genes (adjusted p-value < 0.01, average fold change > 2, percent of cells in cluster expressing gene > 0.6)
A2: 0 | B2: =AVERAGE(C2:F2) -> 26.3% | C2: 30.7% | D2: 20.9% | E2: 33.3% | F2: 20.1% | G2: Cd8a, Cd8b1, Ctsd, Gzma, Gzmb, Klra5, Klrc1, Lgals3, Nkg7, Pdcd1, Spp1, Trgv2
A3: 1 | B3: 11.8% | C3: 8.2% | D3: 10.9% | E3: 7.5% | F3: 20.5% | G3: Ccl5, Gzmk, Ly6c1, Ly6c2
A4: 2 | B4: 11.8% | C4: 14.3% | D4: 14.1% | E4: 12.6% | F4: 6.0% | G4: Ahr, Areg, Arl5a, Arl5c, Ass1, Batf, Ccr2, Ccr7, Ccrl2, Cd5, Cd81, Cd83, Cebpb, Cmtm7, Ctla4, Cxcr4, Dgat2, Dusp1, Fabp5, Foxp3, Gadd45b, Gm2a, Got1, Icam1, Ier5, Ifi27l2a, Ikzf2, Ikzf4, Il1rl1, Il2ra, Itgae, Itgb7, Itm2c, Izumo1r, Klrg1, Lmna, Ltb, Ly6a, Maf, Mxd1, Nfkbia, Nfkbiz, Nr4a1, Penk, Pim1, Ppp1r15a, Psen2, Rel, Rilpl2, Rora, Rrad, Samhd1, Sdc4, Sell, Slc25a19, Snx18, Stx11, Syngr2, Tgif1, Tigit, Tnfrsf18, Tnfrsf4, Tnfrsf9, Traf1, Trp53i11, Vim, Zfp36, Zfp36l1
A5: 3 | B5: 10.6% | C5: 6.5% | D5: 16.8% | E5: 3.0% | F5: 16.0% | G5: Bhlhe40, Ccl1, Ccr8, Cd4, Cd40lg, Cd82, Cd83, Csf2, Emb, Fabp5, Furin, Igfbp7, Il13, Il1r2, Krt83, Lgals7, Lta, Nfkbid, Penk, Prnp, Ramp3, Scin, Tnfsf11, Tnfsf8
A6: 4 | B6: 7.4% | C6: 10.9% | D6: 8.5% | E6: 4.9% | F6: 5.4% | G6: Dusp10, Ecm1, Klf2, Klf3, Pja1, Ramp3, S1pr1, Socs3, Tbc1d4, Tcf7
A7: 5 | B7: 6.3% | C7: 6.0% | D7: 4.8% | E7: 8.7% | F7: 5.6% | G7: Dut, Mcm3, Mcm5, Mcm6, Stmn1
A8: 6 | B8: 4.2% | C8: 3.8% | D8: 3.4% | E8: 4.2% | F8: 5.4% | G8: Ccl1, Ccl3, Ccl4, Cd8a, Ifng, Irf8, Nr4a2, Rgs16, Xcl1
A9: 7 | B9: 4.1% | C9: 3.0% | D9: 3.6% | E9: 5.8% | F9: 4.0% | G9: Anapc5, Anp32b, Asf1b, Aurkb, Birc5, Ccdc34, Ccna2, Ccnb2, Cdca3, Cdca8, Cdk1, Cenpa, Cenpe, Cenpf, Cenpw, Cks1b, Clspn, Dek, Dut, Esco2, Ezh2, Fbxo5, Gm4316, Gmnn, H2afv, H2afx, H2afz, Hist1h1b, Hist1h1e, Hist1h2ae, Hist1h2ap, Hmgb1, Hmgb2, Hmgn2, Hnrnpab, Incenp, Knl1, Lmnb1, Ly6e, Mcm7, Mki67, Nrm, Nusap1, Pclaf, Pcna, Prc1, Ptma, Pttg1, Racgap1, Rad51, Ran, Rrm1, Rrm2, Selenoh, Siva1, Slbp, Smc2, Smc4, Spc24, Stmn1, Tacc3, Tcf19, Tk1, Tmpo, Top2a, Tpx2, Tuba1b, Tubb4b, Tubb5, Tyms, Ube2c, Ube2s, Uhrf1
A10: 8 | B10: 3.5% | C10: 4.7% | D10: 4.2% | E10: 2.4% | F10: 2.8% | G10: Ass1, Bmyc, Cd81, Cmtm7, Ctsz, Fabp5, Foxp3, H2afz, Ikzf2, Il1r2, Il2ra, Klrg1, Ly6a, Mki67, Penk, Rln3, Stmn1, Stx11, Tnfrsf4, Tuba1b, Tubb5
A11: 9 | B11: 3.3% | C11: 2.9% | D11: 2.2% | E11: 4.2% | F11: 4.0% | G11: Aftph, Bst2, Cmpk2, Cxcl10, Daxx, Dtx3l, Eif2ak2, Gbp2, Gbp4, Gbp7, Gbp9, Herc6, Ifi203, Ifi208, Ifi209, Ifi214, Ifi27l2a, Ifi47, Ifih1, Ifit1, Ifit3, Ifit3b, Igtp, Irf7, Isg15, Isg20, Mndal, Ms4a4b, Mx1, Oas3, Parp14, Phf11b, Rnf213, Rsad2, Rtp4, Samhd1, Slfn1, Slfn5, Slfn8, Stat1, Tgtp2, Tor3a, Trafd1, Trim30a, Ube2l6, Usp18, Xaf1, Zbp1
A12: 10 | B12: 3.0% | C12: 2.6% | D12: 2.4% | E12: 4.3% | F12: 2.7% | G12: Birc5, Ccnb2, Cenpa, Cks1b, Dap, Hmgb2, Hmgn2, Ly6e, Mt1, Pttg1, Selenoh, Ube2c
A13: 11 | B13: 2.5% | C13: 1.9% | D13: 4.2% | E13: 1.0% | F13: 2.9% | G13: Cd40lg, Dusp10, Ecm1, Ell2, Fam46a, Gata3, Il1rl1, Il4, Ldha, Lgals7, Myo6, Nfkbia, Pdlim1, Ramp3, Rgs1, Tnfsf8
A14: 12 | B14: 2.1% | C14: 1.6% | D14: 1.5% | E14: 3.3% | F14: 2.1% | G14: Ctsd, Gzma, Gzmb, Gzmc, Gzmd, Gzme, Gzmf, Gzmg, Ifitm1, Irf8, Klra5, Lgals3, Mt1, Prf1, S100a6, Spp1
A15: 13 | B15: 2.1% | C15: 1.2% | D15: 0.9% | E15: 3.9% | F15: 2.3% | G15: Ahr, Areg, Bhlhe40, Ccr7, Cd4, Cd81, Ctla4, Ecm1, Ern1, Foxp3, Ikzf2, Il2ra, Itgae, Itgb7, Izumo1r, Lamc1, Ly75, Maf, Malat1, Myh9, Neat1, Nfkbiz, Pim1, Rel, Rora, Samhd1, Sdc4, Sell, Sema4b, Snx18, Stat1, Stat3, Swap70, Zfp36l1
A16: 14 | B16: 0.4% | C16: 0.7% | D16: 0.5% | E16: 0.3% | F16: 0.2% | G16: Aif1, Apoe, C1qa, C1qb, C1qc, Cd63, Cd74, Ctsz, Fcer1g, Fcgr2b, Fcgr3, Gatm, Grn, H2-Aa, H2-Ab1, H2-Eb1, Il1b, Lgmn, Lyz2, Tgfbi, Tyrobp
A17: 15 | B17: 0.3% | C17: 0.4% | D17: 0.4% | E17: 0.4% | F17: 0.1% | G17: Car2, Cd160, Cd7, Emid1, Fcer1g, Igha, Klra5, Klra7, Plac8, S100a1, Tyrobp, Xcl1
A18: 16 | B18: 0.3% | C18: 0.6% | D18: 0.4% | E18: 0.0% | F18: 0.0% | G18: Actn2, Avpi1, Cd69, Ckb, Emb, Espn, Ffar2, Furin, Gm2a, Gpx1, Gzmb, Ifngr2, Il17a, Il17re, Il23r, Kctd12, Krt83, Lgals3, Lmo4, Ltb4r1, Myc, Nfkbia, Pim1, Prr29, Pxdc1, Ramp1, Selenop, Serpinb1a, Smox, Tcrg-C1, Tgm2, Tiparp, Tmem176a, Tmem176b, Tnf, Tnfsf14, Zbtb16, Zfp36l1

Sheet ProjectTIL
A1: Cluster | B1: Average frequency | C1: Untreated | D1: CTLA4 | E1: RT | F1: RT+CTLA4 | G1: Differentially expressed genes (adjusted p-value < 0.01, average fold change > 2, percent of cells in cluster expressing gene > 0.6)
A2: CD8_Tex | B2: =AVERAGE(C2:F2) -> 42.3% | C2: 43.3% | D2: 30.4% | E2: 59.8% | F2: 35.5% | G2: Cd8a, Cd8b1, Cst7, Ctsd, Gzma, Gzmb, Ifitm1, Irf8, Klra5, Klrc1, Klrd1, Lat2, Lgals3, Mt1, Nkg7, Pdcd1, Prf1, Spp1, Trgv2
A3: Th1 | B3: 24.4% | C3: 21.0% | D3: 36.1% | E3: 9.8% | F3: 30.5% | G3: Cd4, Cd40lg, Ecm1, Emb, Klf2, Krt83, Lgals7, Lta, Ramp3, Tnfsf11, Tnfsf8
A4: Treg | B4: 13.6% | C4: 17.7% | D4: 14.7% | E4: 15.6% | F4: 6.6% | G4: Ahr, Areg, Arl5a, Arl5c, Ass1, Batf, Bmyc, Ccr2, Ccr7, Ccr8, Ccrl2, Cd5, Cd81, Cd83, Cmtm7, Ctla4, Ctsz, Ddit4, Dgat2, Dusp1, Fabp5, Foxp3, Gadd45b, Glrx, Gm2a, Icam1, Ifi27l2a, Ikzf2, Ikzf4, Il1r2, Il1rl1, Il2ra, Itgae, Itgb7, Itm2c, Izumo1r, Klrg1, Laptm4b, Lmna, Ltb, Ly6a, Maf, Mxd1, Nfkbia, Nfkbiz, Nr4a1, Penk, Pim1, Rel, Rilpl2, Rln3, Rora, Rrad, Samhd1, Sdc4, Sell, Slc25a19, Snx18, Stat1, Stx11, Syngr2, Tigit, Tnfrsf18, Tnfrsf4, Tnfrsf9, Traf1, Trp53i11, Vim, Zfp36l1
A5: CD8_EffectorMemory | B5: 9.9% | C5: 6.1% | D5: 8.0% | E5: 9.1% | F5: 16.5% | G5: Ccl5, Gzmk, Ly6c1, Ly6c2
A6: CD8_Tpex | B6: 3.5% | C6: 2.8% | D6: 3.6% | E6: 1.7% | F6: 5.9% | G6: Ccl1, Ccr7, Ifng, Irf8, Nr4a2, Rgs16, Xcl1
A7: CD8_NaiveLike | B7: 2.8% | C7: 4.8% | D7: 3.3% | E7: 2.0% | F7: 1.1% | G7: Klf2, Ly6c1, Ly6c2
A8: CD8_EarlyActiv | B8: 1.5% | C8: 1.1% | D8: 1.6% | E8: 0.7% | F8: 2.8% | G8: Ccl5, Cd69, Dusp2, Gramd3, Klf2, Ly6c1, Ly6c2, Zfp36l2
A9: CD4_NaiveLike | B9: 1.3% | C9: 2.3% | D9: 1.2% | E9: 1.3% | F9: 0.3% | G9: Ccr7, Dusp10, Ecm1, Gramd3, Klf2, Klf3, Lef1, Pja1, Ramp3, S1pr1, Socs3, Tcf7, Trbv20, Trib2
A10: Tfh | B10: 0.7% | C10: 1.0% | D10: 1.0% | E10: 0.1% | F10: 0.7% | G10: Ccr7, Tnfrsf4, Zfp36l1

Sheet CD8 Tex
A1: Cluster | B1: Proportion of total cells | C1: Proportion of CD8_Tex cells | D1: Untreated | E1: CTLA4 | F1: RT | G1: RT+CTLA4 | H1: Differentially expressed genes (adjusted p-value < 0.01, average fold change > 2, percent of cells in cluster expressing gene > 0.6)
A2: CD8_Tex | B2: =AVERAGE(D2:G2) -> 42.3% | C2: =B2/$B$2 -> 100.0% | D2: 43.3% | E2: 30.4% | F2: 59.8% | G2: 35.5% | H2: Cd8a, Cd8b1, Cst7, Ctsd, Gzma, Gzmb, Ifitm1, Irf8, Klra5, Klrc1, Klrd1, Lat2, Lgals3, Mt1, Nkg7, Pdcd1, Prf1, Spp1, Trgv2
A3: CD8_Tex..0 | B3: 24.1% | C3: =B3/$B$2 -> 57.0% | D3: 29.3% | E3: 18.1% | F3: 31.4% | G3: 17.7% | H3: Cd8a, Cd8b1, Ctsd, Gzma, Gzmb, Klra5, Klrc1, Lgals3, Nkg7, Pdcd1, Spp1, Trgv2
A4: CD8_Tex..1 | B4: 1.4% | C4: 3.2% | D4: 0.5% | E4: 0.5% | F4: 2.0% | G4: 2.4% | H4: NA
A5: CD8_Tex..5 | B5: 5.5% | C5: 13.0% | D5: 4.5% | E5: 4.1% | F5: 8.3% | G5: 5.2% | H5: Dut, Mcm3, Mcm5, Mcm6, Stmn1
A6: CD8_Tex..6 | B6: 1.7% | C6: 4.1% | D6: 1.8% | E6: 0.9% | F6: 2.7% | G6: 1.5% | H6: NA
A7: CD8_Tex..7 | B7: 3.6% | C7: 8.5% | D7: 2.5% | E7: 2.8% | F7: 5.6% | G7: 3.5% | H7: Anapc5, Anp32b, Asf1b, Aurkb, Birc5, Ccdc34, Ccna2, Ccnb2, Cdca3, Cdca8, Cdk1, Cenpa, Cenpe, Cenpf, Cenpw, Cks1b, Clspn, Dek, Dnajc9, Dut, Esco2, Ezh2, Fbxo5, Fen1, Gm4316, Gmnn, H2afv, H2afx, H2afz, Hist1h1b, Hist1h1e, Hist1h2ae, Hist1h2ak, Hist1h2ap, Hmgb1, Hmgb2, Hmgn2, Hnrnpa3, Hnrnpab, Incenp, Knl1, Lmnb1, Lsm2, Ly6e, Mcm5, Mcm7, Mki67, Nrm, Nusap1, Pclaf, Pcna, Prc1, Ptma, Pttg1, Racgap1, Rad51, Ran, Rrm1, Rrm2, Selenoh, Siva1, Slbp, Smc2, Smc4, Snrpd1, Spc24, Stmn1, Tacc3, Tcf19, Tk1, Tmpo, Top2a, Tpx2, Tuba1b, Tubb4b, Tubb5, Tyms, Ube2c, Ube2s, Uhrf1
A8: CD8_Tex..10 | B8: 2.6% | C8: 6.1% | D8: 2.2% | E8: 2.1% | F8: 4.1% | G8: 1.9% | H8: Ccnb2, Cenpa, Dap, Hmgn2, Ly6e, Mt1, Pttg1, Selenoh, Ube2c
A9: CD8_Tex..12 | B9: 2.1% | C9: 5.0% | D9: 1.6% | E9: 1.4% | F9: 3.3% | G9: 2.1% | H9: Ctsd, Gzma, Gzmb, Gzmc, Gzmd, Gzme, Gzmf, Gzmg, Ifitm1, Irf8, Klra5, Lgals3, Mt1, Prf1, S100a6, Spp1

Sheet Th1
A1: Cluster | B1: Average frequency | C1: Proportion of Th1 cells | D1: Untreated | E1: CTLA4 | F1: RT | G1: RT+CTLA4 | H1: Differentially expressed genes (adjusted p-value < 0.01, average fold change > 2, percent of cells in cluster expressing gene > 0.6)
A2: Th1 | B2: =AVERAGE(D2:G2) -> 24.4% | C2: =B2/$B$2 -> 100.0% | D2: 21.0% | E2: 36.1% | F2: 9.8% | G2: 30.5% | H2: Cd4, Cd40lg, Ecm1, Emb, Klf2, Krt83, Lgals7, Lta, Ramp3, Tnfsf11, Tnfsf8
A3: Th1..1 | B3: 1.5% | C3: =B3/$B$2 -> 6.3% | D3: 1.1% | E3: 1.7% | F3: 0.5% | G3: 2.8% | H3: Cd69, Ifitm2, Ifitm3, Klf2
A4: Th1..2 | B4: 2.1% | C4: 8.7% | D4: 1.9% | E4: 3.6% | F4: 1.6% | G4: 1.4% | H4: Ass1, Cxcr4, Dusp1, Foxp3, Ikzf2, Itgb7, Izumo1r, Klf2, Nfkbia, Nfkbiz, Pim1, Ppp1r15a, Rrad, Samhd1, Sell, Snx18, Tgif1, Tnfrsf4, Zfp36, Zfp36l1
A5: Th1..3 | B5: 10.1% | C5: 41.3% | D5: 6.0% | E5: 16.2% | F5: 2.8% | G5: 15.2% | H5: Bhlhe40, Ccl1, Ccr8, Cd4, Cd40lg, Cd82, Cd83, Csf2, Emb, Fabp5, Furin, Igfbp7, Il13, Il1r2, Krt83, Lgals7, Lta, Nfkbid, Penk, Prnp, Ramp3, Scin, Tnfsf11, Tnfsf8
A6: Th1..4 | B6: 5.0% | C6: 20.5% | D6: 7.0% | E6: 6.3% | F6: 2.9% | G6: 3.9% | H6: Cd4, Dusp10, Ecm1, Emb, Klf2, Klf3, Ramp3, Rgs1, S1pr1, Socs3, Tbc1d4, Tcf7
A7: Th1..11 | B7: 2.4% | C7: 9.8% | D7: 1.9% | E7: 4.0% | F7: 1.0% | G7: 2.6% | H7: Cd40lg, Cdkn1a, Dusp10, Ecm1, Ell2, Emb, Fam46a, Gata3, Il1rl1, Il4, Ldha, Lgals7, Myo6, Nfkbia, Pdlim1, Pim1, Ramp3, Rgs1, Tnfsf8 | I7: Gata3 is transcription factor for Th2 cells. Th2 cells produce Il4

Sheet Treg
A1: Cluster | B1: Proportion of total cells | C1: Proportion of Treg cells | D1: Untreated | E1: CTLA4 | F1: RT | G1: RT+CTLA4 | H1: Differentially expressed genes (adjusted p-value < 0.01, average fold change > 2, percent of cells in cluster expressing gene > 0.6)
A2: Treg | B2: =AVERAGE(D2:G2) -> 13.6% | C2: =B2/$B$2 -> 100.0% | D2: 17.7% | E2: 14.7% | F2: 15.6% | G2: 6.6% | H2: Ahr, Areg, Arl5a, Arl5c, Ass1, Batf, Bmyc, Ccr2, Ccr7, Ccr8, Ccrl2, Cd5, Cd81, Cd83, Cmtm7, Ctla4, Ctsz, Ddit4, Dgat2, Dusp1, Fabp5, Foxp3, Gadd45b, Glrx, Gm2a, Icam1, Ifi27l2a, Ikzf2, Ikzf4, Il1r2, Il1rl1, Il2ra, Itgae, Itgb7, Itm2c, Izumo1r, Klrg1, Laptm4b, Lmna, Ltb, Ly6a, Maf, Mxd1, Nfkbia, Nfkbiz, Nr4a1, Penk, Pim1, Rel, Rilpl2, Rln3, Rora, Rrad, Samhd1, Sdc4, Sell, Slc25a19, Snx18, Stat1, Stx11, Syngr2, Tigit, Tnfrsf18, Tnfrsf4, Tnfrsf9, Traf1, Trp53i11, Vim, Zfp36l1
A3: Treg..2 | B3: =AVERAGE(D3:G3) -> 9.5% | C3: =B3/$B$2 -> 69.7% | D3: 12.3% | E3: 10.3% | F3: 10.9% | G3: 4.5% | H3: Ahr, Areg, Arl5a, Arl5c, Ass1, Batf, Bmyc, Ccr2, Ccr7, Ccr8, Ccrl2, Cd5, Cd81, Cd83, Cebpb, Cmtm7, Ctla4, Dgat2, Dusp1, Fabp5, Foxp3, Gadd45b, Glrx, Gm2a, Icam1, Ier5, Ifi27l2a, Ikzf2, Ikzf4, Il1rl1, Il2ra, Itgae, Itgb7, Itm2c, Izumo1r, Klrg1, Laptm4b, Lmna, Ltb, Ly6a, Maf, Mxd1, Nfkbia, Nfkbiz, Nr4a1, Penk, Pim1, Psen2, Rel, Rilpl2, Rora, Rrad, Samhd1, Sdc4, Sell, Slc15a3, Slc25a19, Snx18, Stat1, Stx11, Syngr2, Tgif1, Tigit, Tnfrsf18, Tnfrsf4, Tnfrsf9, Traf1, Trp53i11, Vim, Zfp36, Zfp36l1
A4: Treg..8 | B4: =AVERAGE(D4:G4) -> 2.6% | C4: 18.7% | D4: 4.1% | E4: 2.8% | F4: 2.0% | G4: 1.4% | H4: Areg, Ass1, Birc5, Cd81, Cmtm7, Ctla4, Ctsz, Fabp5, Foxp3, H2afz, Ikzf2, Il2ra, Klrg1, Ly6a, Mki67, Penk, Rln3, Stmn1, Tnfrsf4, Tnfrsf9, Tubb5

Sheet CD8 EM
A1: Cluster | B1: Proportion of total cells | C1: Proportion of CD8 EM cells | D1: Untreated | E1: CTLA4 | F1: RT | G1: RT+CTLA4 | H1: Differentially expressed genes (adjusted p-value < 0.01, average fold change > 2, percent of cells in cluster expressing gene > 0.6)
A2: CD8_EffectorMemory | B2: =AVERAGE(D2:G2) -> 9.9% | C2: =B2/$B$2 -> 100.0% | D2: 6.1% | E2: 8.0% | F2: 9.1% | G2: 16.5% | H2: Ccl5, Gzmk, Ly6c1, Ly6c2
A3: CD8_EffectorMemory..1 | B3: =AVERAGE(D3:G3) -> 5.8% | C3: =B3/$B$2 -> 58.8% | D3: 3.1% | E3: 5.1% | F3: 3.6% | G3: 11.6% | H3: Ccl5, Gzmk, Ly6c1, Ly6c2
A4: CD8_EffectorMemory..9 | B4: =AVERAGE(D4:G4) -> 1.6% | C4: 16.0% | D4: 1.0% | E4: 0.9% | F4: 2.8% | G4: 1.7% | H4: Aftph, Bst2, Ccl5, Cmpk2, Cxcl10, Daxx, Dtx3l, Eif2ak2, Gbp2, Gbp4, Gbp7, Gbp9, Herc6, Ifi203, Ifi208, Ifi209, Ifi214, Ifi47, Ifih1, Ifit1, Ifit2, Ifit3, Igtp, Irf7, Isg15, Isg20, Jaml, Mndal, Ms4a4b, Mx1, Parp14, Phf11b, Rnf213, Rsad2, Rtp4, Samhd1, Slfn1, Slfn8, Stat1, Tgtp2, Tor3a, Trafd1, Trbv3, Trim30a, Ube2l6, Usp18, Xaf1, Zbp1

Sheet CD8 Tpex
A1: Cluster | B1: Proportion of total cells | C1: Proportion of CD8 Tpex cells | D1: Untreated | E1: CTLA4 | F1: RT | G1: RT+CTLA4 | H1: Differentially expressed genes (adjusted p-value < 0.01, average fold change > 2, percent of cells in cluster expressing gene > 0.6)
A2: CD8_Tpex | B2: =AVERAGE(D2:G2) -> 3.5% | C2: =B2/$B$2 -> 100.0% | D2: 2.8% | E2: 3.6% | F2: 1.7% | G2: 5.9% | H2: Ccl1, Ccr7, Ifng, Irf8, Nr4a2, Rgs16, Xcl1
A3: CD8_Tpex..6 | B3: =AVERAGE(D3:G3) -> 2.2% | C3: =B3/$B$2 -> 62.7% | D3: 1.7% | E3: 2.2% | F3: 1.1% | G3: 3.7% | H3: Ccl1, Ccl3, Ccr7, Cd160, Ifng, Irf8, Nr4a2, Nrgn, Rgs16, Xcl1

Sheet CD8 EA
A1: Cluster | B1: Proportion of total cells | C1: Proportion of CD8 Tpex cells | D1: Untreated | E1: CTLA4 | F1: RT | G1: RT+CTLA4 | H1: Differentially expressed genes (adjusted p-value < 0.01, average fold change > 2, percent of cells in cluster expressing gene > 0.6)
A2: CD8_EarlyActiv | B2: =AVERAGE(D2:G2) -> 1.5% | C2: =B2/$B$2 -> 100.0% | D2: 1.1% | E2: 1.6% | F2: 0.7% | G2: 2.8% | H2: Ccl5, Cd69, Dusp2, Gramd3, Klf2, Ly6c1, Ly6c2, Zfp36l2
A3: CD8_EarlyActiv..1 | B3: =AVERAGE(D3:G3) -> 1.3% | C3: =B3/$B$2 -> 81.5% | D3: 0.8% | E3: 1.5% | F3: 0.6% | G3: 2.1% | H3: Ccl5, Cd69, Dusp2, Klf2, Klf6, Ly6c1, Ly6c2, Zfp36l2
